bitfinex-derivatives/quotes_ETHF0:USTF0_20240831
["timestamp","ask_amount","ask_price","bid_price","bid_amount"]
[1725074339719,0.3896,2522.8,2522.7,0.27749]
[1725074339910,5.07367686,2522.8,2522.7,0.27749]
[1725074340114,5.07367686,2522.8,2522.7,0.6692424]
[1725074340115,9.03767686,2522.8,2522.7,0.6692424]
[1725074340415,9.03767686,2522.8,2522.5,8.68130987]
[1725074340416,0.2775,2522.7,2522.5,8.68130987]
[1725074340827,0.2775,2522.7,2522.5,7.64331]
[1725074341214,5.35115686,2522.8,2522.6,0.2775]
[1725074341522,5.07367686,2522.8,2522.6,0.2775]
[1725074341717,0.66708,2522.8,2522.6,0.64679]
[1725074341912,0.3896,2522.8,2522.7,0.27749]
[1725074342510,0.3896,2522.8,2522.6,0.64679]
[1725074343419,0.3896,2522.8,2522.7,0.27749]
[1725074344313,1.0,2522.9,2522.7,0.27749]
[1725074344514,1.0,2522.9,2522.8,0.3624]
[1725074344715,1.27747,2522.9,2522.8,0.7436]
[1725074344915,1.27747,2522.9,2522.8,0.3812]
[1725074345822,1.0,2522.9,2522.8,0.3812]
[1725074346026,1.27747,2522.9,2522.8,0.3812]
[1725074348822,1.0,2522.9,2522.8,0.3812]
[1725074349625,1.27747,2522.9,2522.8,0.3812]
[1725074351419,1.0,2522.9,2522.8,0.3812]
[1725074355029,1.3597,2522.9,2522.8,0.3812]
[1725074357627,1.0,2522.9,2522.8,0.65868]
[1725074360030,3.9464,2523.1,2523.0,0.27746]
[1725074360239,1.7386,2523.1,2523.0,0.27746]
[1725074363939,2.01605,2523.1,2522.9,1.03396]
[1725074366237,0.27746,2523.0,2522.9,0.7565]
[1725074366438,0.27746,2523.0,2522.8,0.65867]
[1725074369044,1.7386,2523.1,2522.8,0.65867]
[1725074369045,2.01606,2523.1,2522.8,0.65867]
[1725074369241,0.27746,2523.0,2522.8,0.65867]
[1725074374457,0.27746,2523.0,2522.8,0.3812]
[1725074374847,0.27747,2522.9,2522.8,0.3812]
[1725074375158,0.2775,2522.6,2522.5,5.19599987]
[1725074375355,0.27749,2522.7,2522.5,1.42990995]
[1725074375556,0.2775,2522.7,2522.5,1.41949987]
[1725074375853,0.2775,2522.7,2522.5,0.65901]
[1725074376057,0.2775,2522.7,2522.6,0.3534]
[1725074378845,1.00938,2522.8,2522.6,0.3534]
[1725074379147,0.69363,2523.1,2522.8,0.27747]
[1725074379148,1.27745,2523.1,2522.8,0.27747]
[1725074379551,4.34754823,2523.0,2522.9,0.7319]
[1725074379751,1.27745,2523.1,2522.9,0.7319]
[1725074379949,1.27745,2523.1,2522.9,1.00937]
[1725074380153,1.27745,2523.1,2523.0,0.3643]
[1725074380553,1.0,2523.1,2523.0,0.3643]
[1725074381258,1.0,2523.1,2523.0,0.64176]
[1725074381461,1.0,2523.1,2523.0,0.3643]
[1725074382262,1.0,2523.1,2523.0,0.64176]
[1725074383755,1.0,2523.2,2523.1,0.27745]
[1725074387761,1.0,2523.2,2523.0,0.64175]
[1725074393970,1.27743,2523.2,2523.0,0.64175]
[1725074399868,1.27743,2523.2,2523.0,0.3643]
[1725074400173,0.27746,2523.0,2522.9,1.03799987]
[1725074400366,0.27747,2522.9,2522.8,1.03799987]
[1725074400567,0.27748,2522.8,2522.7,1.03799987]
[1725074400769,0.27749,2522.7,2522.6,5.71329172]
[1725074400972,0.27749,2522.7,2522.6,7.69599393]
[1725074401573,0.27749,2522.7,2522.6,7.17945989]
[1725074401777,0.63859,2522.7,2522.6,4.158]
[1725074402674,0.63859,2522.7,2522.6,4.55001503]
[1725074403174,0.3611,2522.7,2522.6,4.55001503]
[1725074403379,0.3611,2522.7,2522.6,5.58877271]
[1725074403678,0.63859,2522.7,2522.6,5.58877271]
[1725074403880,0.3611,2522.7,2522.6,4.55001503]
[1725074404074,0.3611,2522.7,2522.6,5.19675768]
[1725074404280,0.3611,2522.7,2522.6,4.55005826]
[1725074405377,0.3611,2522.7,2522.6,0.39205826]
[1725074405578,0.3611,2522.7,2522.6,1.43081594]
[1725074406379,0.3611,2522.7,2522.6,0.39205826]
[1725074407076,0.3611,2522.7,2522.6,0.66955826]
[1725074407378,3.5616,2522.9,2522.8,0.27748]
[1725074407679,8.80493444,2522.8,2522.7,0.4529328]
[1725074407879,8.80493444,2522.8,2522.3,0.4529328]
[1725074407880,0.27752,2522.5,2522.3,0.4529328]
[1725074408082,1.76,2522.4,2522.2,3.21374507]
[1725074408377,1.76,2522.4,2522.3,0.66972365]
[1725074409279,1.76,2522.4,2522.3,0.27753]
[1725074409777,1.76,2522.4,2522.3,0.66974292]
[1725074409973,1.76,2522.4,2522.3,0.98803]
[1725074412181,1.76,2522.4,2522.3,0.27753]
[1725074414376,0.76,2522.4,2522.3,0.27753]
[1725074414578,0.76,2522.4,2522.3,0.66971702]
[1725074416385,0.3838,2522.4,2522.3,0.66971702]
[1725074416891,0.27744,2523.2,2522.3,13.65280221]
[1725074417076,2.02793,2523.2,2522.9,0.27746]
[1725074417274,2.02793,2523.2,2523.0,0.3712]
[1725074418082,0.27745,2523.1,2523.0,0.3712]
[1725074418784,0.51575,2523.1,2522.7,0.27748]
[1725074419089,1.0,2522.9,2522.8,0.3797]
[1725074419283,1.0,2522.9,2522.8,0.65718]
[1725074427784,0.7505,2523.2,2522.8,0.3797]
[1725074427999,0.3685,2523.2,2523.1,0.27745]
[1725074428385,1.0,2523.3,2523.1,0.27745]
[1725074428800,1.0,2523.3,2523.2,0.3571]
[1725074429193,1.27742,2523.3,2523.2,0.3571]
[1725074431285,1.0,2523.3,2523.2,0.3571]
[1725074432086,1.0,2523.3,2523.2,0.63453]
[1725074432605,3.21374507,2523.4,2523.3,0.27742]
[1725074432788,3.21374507,2523.4,2523.2,0.63453]
[1725074432789,4.21374507,2523.4,2523.2,0.63453]
[1725074437298,3.2078,2523.3,2523.2,0.63453]
[1725074437497,0.00594507,2523.4,2523.3,0.27742]
[1725074437704,0.00594507,2523.4,2523.3,1.01232]
[1725074440199,0.00594507,2523.4,2523.3,4.97552]
[1725074448014,0.36,2523.8,2523.3,4.97552]
[1725074448015,0.36,2523.8,2523.7,0.27738]
[1725074453013,0.38464507,2524.0,2523.9,0.27736]
[1725074453816,0.00594507,2524.0,2523.9,7.44756]
[1725074454013,0.00594507,2524.0,2523.9,8.80156]
[1725074470345,0.51549,2524.6,2523.9,14.80156]
[1725074470346,0.2382,2524.6,2523.9,14.80156]
[1725074470638,0.7285,2524.6,2524.2,1.0]
[1725074470835,0.7285,2524.6,2524.4,0.2773]
[1725074472538,0.7285,2524.6,2524.5,0.27729]
[1725074479148,4.48504,2525.0,2524.6,0.27727]
[1725074479441,0.7225,2524.8,2524.7,0.3771]
[1725074479741,0.7225,2524.8,2524.7,0.65437]
[1725074490254,0.7225,2524.8,2524.5,3.2078]
[1725074490556,0.99976,2524.8,2524.5,0.27729]
[1725074490751,0.2381,2524.7,2524.5,0.27729]
[1725074491256,0.2381,2524.7,2524.6,0.27728]
[1725074491450,0.2381,2524.7,2524.5,0.27728]
[1725074492561,0.2381,2524.7,2524.4,1.2773]
[1725074492562,0.51538,2524.7,2524.4,1.2773]
[1725074492945,0.2381,2524.7,2524.5,0.27729]
[1725074493150,0.51537,2524.7,2524.5,0.27729]
[1725074493560,0.2381,2524.7,2524.5,0.27729]
[1725074494147,0.2381,2524.7,2524.4,1.0]
[1725074494359,0.2381,2524.7,2524.6,0.27728]
[1725074496253,0.27729,2524.6,2524.3,0.65551]
[1725074496461,0.27729,2524.6,2524.3,1.65551]
[1725074497049,0.27729,2524.6,2524.4,0.2773]
[1725074503361,0.2381,2524.7,2524.3,0.3782]
[1725074503559,0.27733,2524.2,2523.9,18.01062331]
[1725074503869,0.27735,2524.0,2523.9,0.3745]
[1725074504057,0.27735,2524.0,2523.8,1.27737]
[1725074504356,0.27735,2524.0,2523.8,0.27737]
[1725074504557,1.24044,2524.1,2523.8,0.27737]
[1725074504755,1.24044,2524.1,2523.9,0.27736]
[1725074505649,1.24044,2524.1,2523.8,0.27736]
[1725074506057,0.27735,2524.0,2523.7,0.3745]
[1725074506670,0.9631,2524.1,2523.7,0.3745]
[1725074507163,0.27735,2524.0,2523.7,0.3745]
[1725074507352,4.56949487,2524.0,2523.7,0.3745]
[1725074508363,0.27736,2523.9,2523.7,0.3745]
[1725074508768,4.56949487,2524.0,2523.7,0.65188]
[1725074509159,0.27737,2523.8,2523.7,0.3745]
[1725074509360,4.29214487,2524.0,2523.7,0.3745]
[1725074509361,0.27737,2523.9,2523.7,0.3745]
[1725074510155,0.27737,2523.8,2523.7,0.3745]
[1725074510863,0.27737,2523.8,2523.5,1.28334507]
[1725074511169,0.7569,2523.7,2523.5,1.67224507]
[1725074523677,0.27739,2523.6,2523.5,0.39484507]
[1725074523978,8.7713825,2523.6,2523.5,0.00594507]
[1725074524176,14.7713825,2523.6,2523.5,0.00594507]
[1725074524364,15.4648625,2523.6,2523.5,0.00594507]
[1725074524566,14.7713825,2523.6,2523.5,0.00594507]
[1725074529077,17.9791825,2523.6,2523.5,0.00594507]
[1725074529679,11.9791825,2523.6,2523.5,0.00594507]
[1725074531079,8.7713825,2523.6,2523.5,0.00594507]
[1725074531282,11.9791825,2523.6,2523.5,0.00594507]
[1725074534492,8.7713825,2523.6,2523.5,0.00594507]
[1725074534893,11.9791825,2523.6,2523.5,0.00594507]
[1725074538996,12.6726625,2523.6,2523.5,0.00594507]
[1725074539596,0.27743,2523.3,2523.0,0.27745]
[1725074539805,0.27743,2523.3,2523.1,0.65714]
[1725074540004,4.49163529,2523.2,2523.1,0.65714]
[1725074542897,0.27743,2523.3,2523.1,0.65714]
[1725074543605,0.28336507,2523.4,2523.1,0.65714]
[1725074543992,4.54348311,2523.3,2523.1,0.65714]
[1725074544607,4.54348311,2523.3,2523.2,0.27743]
[1725074545107,4.54348311,2523.3,2523.1,0.65714]
[1725074546800,4.82090311,2523.3,2523.1,0.65714]
[1725074547211,4.82090311,2523.3,2523.1,0.3797]
[1725074547404,4.82090311,2523.3,2523.1,0.65714]
[1725074554016,0.27743,2523.2,2523.1,0.3797]
[1725074554515,4.82091311,2523.3,2523.1,0.3797]
[1725074555515,0.27743,2523.2,2523.1,0.3797]
[1725074556716,4.82091311,2523.3,2523.1,0.3797]
[1725074556919,4.82091311,2523.3,2523.1,0.65714]
[1725074560816,0.00594507,2523.4,2523.3,0.27742]
[1725074561015,0.00594507,2523.4,2523.3,2.70338287]
[1725074561218,0.00594507,2523.4,2523.3,9.91594829]
[1725074561408,0.00594507,2523.4,2523.3,10.53501438]
[1725074561613,0.00594507,2523.4,2523.3,9.91594829]
[1725074562016,0.00594507,2523.4,2523.3,10.53503724]
[1725074562221,0.00594507,2523.4,2523.3,9.53503724]
[1725074562510,0.00594507,2523.4,2523.3,8.52387646]
[1725074562724,0.00594507,2523.4,2523.3,8.91593711]
[1725074564223,0.00594507,2523.4,2523.3,9.53508066]
[1725074564520,0.00594507,2523.4,2523.3,9.5350806]
[1725074566218,0.00594507,2523.4,2523.3,9.53668144]
[1725074569117,0.00594507,2523.4,2523.3,6.96741524]
[1725074569327,0.00594507,2523.4,2523.3,9.53705439]
[1725074569625,0.00594507,2523.4,2523.3,7.97861769]
[1725074570416,0.00594507,2523.4,2523.3,9.53687457]
[1725074571226,0.00594507,2523.4,2523.3,9.53685733]
[1725074572523,0.00594507,2523.4,2523.3,9.5365794]
[1725074572925,0.00594507,2523.4,2523.3,9.53641939]
[1725074573921,0.00594507,2523.4,2523.3,9.53634647]
[1725074575231,0.00594507,2523.4,2523.3,9.25892647]
[1725074575428,0.00594507,2523.4,2523.3,8.63996257]
[1725074575628,0.00594507,2523.4,2523.3,8.64000335]
[1725074575833,0.28335507,2523.4,2523.3,7.375934]
[1725074576334,0.28335507,2523.4,2523.3,4.3552014]
[1725074576527,0.28335507,2523.4,2523.3,7.37599276]
[1725074576825,0.00594507,2523.4,2523.3,7.37599276]
[1725074577133,0.00594507,2523.4,2523.3,7.37602474]
[1725074577632,0.00594507,2523.4,2523.3,5.39390221]
[1725074578924,0.00594507,2523.4,2523.3,5.00190081]
[1725074579126,0.00594507,2523.4,2523.3,5.39392781]
[1725074579831,0.00594507,2523.4,2523.3,5.67134781]
[1725074580028,0.00594507,2523.4,2523.3,7.65350209]
[1725074580235,0.00594507,2523.4,2523.3,6.61480128]
[1725074580434,0.00594507,2523.4,2523.3,7.65353414]
[1725074581234,0.00594507,2523.4,2523.3,7.37613402]
[1725074581433,0.00594507,2523.4,2523.3,7.65355402]
[1725074583236,0.00594507,2523.4,2523.3,6.22277428]
[1725074583440,0.00594507,2523.4,2523.3,7.65359885]
[1725074583733,0.00594507,2523.4,2523.3,7.37617885]
[1725074584032,0.00594507,2523.4,2523.3,1.43091022]
[1725074584247,0.24404507,2523.4,2523.3,3.41303584]
[1725074584533,0.24404507,2523.4,2523.3,3.0209885]
[1725074584730,0.24404507,2523.4,2523.3,2.37419193]
[1725074584929,0.24404507,2523.4,2523.3,3.69043735]
[1725074585131,0.00594507,2523.4,2523.3,3.69042737]
[1725074585938,0.00594507,2523.4,2523.3,1.70831173]
[1725074587526,0.00594507,2523.4,2523.3,3.6904533]
[1725074587837,0.00594507,2523.4,2523.3,3.29838699]
[1725074588033,0.00594507,2523.4,2523.3,3.69047708]
[1725074588239,0.00594507,2523.4,2523.3,1.70833551]
[1725074588535,0.00594507,2523.4,2523.3,3.69046752]
[1725074590030,0.00594507,2523.4,2523.3,3.69047651]
[1725074590737,0.00594507,2523.4,2523.3,3.69062971]
[1725074591034,0.00594507,2523.4,2523.3,2.259561]
[1725074591227,0.00594507,2523.4,2523.3,3.81755228]
[1725074591424,0.00594507,2523.4,2523.3,4.20963466]
[1725074593941,0.00594507,2523.4,2523.3,4.82878445]
[1725074594132,0.00594507,2523.4,2523.3,4.20963466]
[1725074594336,0.00594507,2523.4,2523.3,3.81755228]
[1725074594539,0.00594507,2523.4,2523.3,4.20963394]
[1725074595233,0.00594507,2523.4,2523.3,4.82873923]
[1725074597641,0.00594507,2523.4,2523.3,3.81750356]
[1725074597848,0.00594507,2523.4,2523.3,4.82871866]
[1725074600231,0.00594507,2523.4,2523.3,4.82867961]
[1725074601039,0.00594507,2523.4,2523.3,3.81746451]
[1725074601247,0.00594507,2523.4,2523.3,4.82868544]
[1725074601936,0.00594507,2523.4,2523.3,3.27069416]
[1725074602137,0.00594507,2523.4,2523.3,4.82978765]
[1725074602344,0.00594507,2523.4,2523.3,3.27069416]
[1725074602640,0.00594507,2523.4,2523.3,9.31090625]
[1725074603034,0.00594507,2523.4,2523.3,13.27481574]
[1725074606439,0.00594507,2523.4,2523.3,9.31090625]
[1725074606649,0.00594507,2523.4,2523.3,13.27474119]
[1725074606841,0.00594507,2523.4,2523.3,11.1977291]
[1725074607041,0.00594507,2523.4,2523.3,13.27745334]
[1725074607844,0.00594507,2523.4,2523.3,13.27740359]
[1725074609445,0.00594507,2523.4,2523.3,5.35027814]
[1725074610440,0.00594507,2523.4,2523.3,5.35040354]
[1725074611449,0.00594507,2523.4,2523.3,3.2706793]
[1725074612051,0.00594507,2523.4,2523.3,4.55317085]
[1725074612849,0.00594507,2523.4,2523.3,2.9932593]
[1725074614151,0.00594507,2523.4,2523.3,3.2706793]
[1725074614460,0.00594507,2523.4,2523.3,3.27074009]
[1725074615555,0.00594507,2523.4,2523.3,2.25950812]
[1725074615754,0.00594507,2523.4,2523.3,3.27074308]
[1725074616152,0.00594507,2523.4,2523.3,9.31450169]
[1725074617963,0.00594507,2523.4,2523.3,9.31447322]
[1725074620358,0.00594507,2523.4,2523.3,7.33228383]
[1725074620656,0.00594507,2523.4,2523.3,9.31426514]
[1725074620960,0.00594507,2523.4,2523.3,9.31427104]
[1725074621362,0.00594507,2523.4,2523.3,9.31427092]
[1725074622462,0.00594507,2523.4,2523.3,9.31426615]
[1725074623554,0.00594507,2523.4,2523.3,6.32110686]
[1725074623759,0.00594507,2523.4,2523.3,7.33228769]
[1725074624159,0.00594507,2523.4,2523.3,3.36832507]
[1725074624564,0.00594507,2523.4,2523.3,3.36832275]
[1725074624962,0.00594507,2523.4,2523.3,3.36832272]
[1725074627362,0.00594507,2523.4,2523.3,9.31427253]
[1725074628264,0.00594507,2523.4,2523.3,7.23454829]
[1725074631359,0.00594507,2523.4,2523.3,7.58663174]
[1725074631567,0.00594507,2523.4,2523.3,0.62952]
[1725074631871,0.00594507,2523.4,2523.3,1.64067586]
[1725074632067,0.00594507,2523.4,2523.3,1.64064556]
[1725074632369,0.00594507,2523.4,2523.3,5.60442023]
[1725074632563,0.00594507,2523.4,2523.3,7.58630756]
[1725074632759,0.00594507,2523.4,2523.3,7.58630484]
[1725074632963,0.7243,2523.7,2523.6,0.27739]
[1725074633169,3.2078,2524.0,2523.9,0.27736]
[1725074633368,3.5648,2524.0,2523.9,0.27736]
[1725074633577,3.5648,2524.0,2523.9,0.66932746]
[1725074634469,3.9448,2524.0,2523.9,0.66932746]
[1725074634867,3.9448,2524.0,2523.9,0.27736]
[1725074635072,0.737,2524.0,2523.9,0.66931616]
[1725074635276,0.737,2524.0,2523.9,0.27736]
[1725074635773,0.737,2524.0,2523.9,0.66931263]
[1725074637586,0.737,2524.0,2523.9,0.66929415]
[1725074638263,0.737,2524.0,2523.9,0.27736]
[1725074638463,0.737,2524.0,2523.9,0.66931258]
[1725074638673,0.737,2524.0,2523.9,1.70881187]
[1725074640964,0.737,2524.0,2523.9,1.70876568]
[1725074641364,0.737,2524.0,2523.9,0.66926639]
[1725074641570,0.737,2524.0,2523.9,1.70876568]
[1725074643277,0.737,2524.0,2523.9,1.31685929]
[1725074643473,0.737,2524.0,2523.9,0.66925509]
[1725074643868,0.737,2524.0,2523.9,0.27736]
[1725074644380,0.737,2524.0,2523.9,0.66926172]
[1725074645072,0.737,2524.0,2523.9,0.27736]
[1725074647381,1.238,2524.3,2524.2,0.27732]
[1725074647382,0.7398,2524.3,2524.2,0.27732]
[1725074647881,0.2378,2524.6,2524.4,0.2773]
[1725074648083,0.9776,2524.6,2524.4,0.2773]
[1725074648680,0.9776,2524.6,2524.5,0.27729]
[1725074648883,4.9384,2524.6,2524.5,0.27729]
[1725074649082,4.9384,2524.6,2524.4,0.2773]
[1725074649281,0.9776,2524.6,2524.4,0.2773]
[1725074651883,0.7398,2524.6,2524.4,0.2773]
[1725074652385,0.7398,2524.6,2524.5,0.27729]
[1725074654780,0.7398,2524.6,2524.3,1.01581]
[1725074654989,0.7398,2524.6,2524.4,0.2773]
[1725074655185,0.7398,2524.6,2524.3,0.64691]
[1725074655577,0.9777,2524.6,2524.4,0.2773]
[1725074661386,0.9777,2524.6,2524.5,0.27729]
[1725074663585,0.9777,2524.6,2524.4,0.2773]
[1725074664686,0.9777,2524.6,2524.5,0.27729]
[1725074665791,0.9777,2524.6,2524.4,0.2773]
[1725074667193,1.25499,2524.6,2524.4,0.2773]
[1725074667490,1.25499,2524.6,2524.3,0.64691]
[1725074667793,1.25499,2524.6,2524.4,0.2773]
[1725074668294,1.25499,2524.6,2524.3,0.64691]
[1725074668697,1.25499,2524.6,2524.3,0.3696]
[1725074668897,1.25499,2524.6,2524.4,0.2773]
[1725074670584,0.9777,2524.6,2524.4,0.2773]
[1725074670790,0.7398,2524.6,2524.5,0.27729]
[1725074671304,0.37,2524.6,2524.5,0.27729]
[1725074671799,3.5976,2524.8,2524.5,0.27729]
[1725074671993,3.9635,2524.8,2524.5,0.27729]
[1725074672189,3.9635,2524.8,2524.6,0.3633]
[1725074672190,4.215706,2524.7,2524.6,0.3633]
[1725074672590,8.176506,2524.7,2524.6,0.3633]
[1725074674195,4.215706,2524.7,2524.6,0.3633]
[1725074674504,4.215706,2524.7,2524.6,0.64058]
[1725074675399,4.215706,2524.7,2524.6,0.3633]
[1725074676798,4.215706,2524.7,2524.6,0.64058]
[1725074676998,4.215706,2524.7,2524.6,0.3633]
[1725074677502,4.215706,2524.7,2524.6,0.64058]
[1725074680794,3.2078,2524.9,2524.7,0.27726]
[1725074681100,3.2078,2524.9,2524.7,0.63556]
[1725074681606,3.2078,2524.9,2524.8,0.27726]
[1725074682806,3.2078,2524.9,2524.8,0.63756]
[1725074687498,1.28573,2525.1,2524.8,0.63756]
[1725074687806,4.38838537,2525.0,2524.8,0.63756]
[1725074688902,4.38838537,2525.0,2524.9,0.3852]
[1725074692797,4.38838537,2525.0,2524.9,0.66245]
[1725074694900,4.38838537,2525.0,2524.9,0.3852]
[1725074695410,4.38838537,2525.0,2524.9,0.66245]
[1725074696109,4.38838537,2525.0,2524.6,1.03718833]
[1725074696307,0.27725,2524.9,2524.6,0.65187]
[1725074696507,0.3554,2524.8,2524.6,0.65187]
[1725074696706,0.7215,2524.8,2524.6,0.65187]
[1725074702317,0.99876,2524.8,2524.6,0.3746]
[1725074702522,0.99876,2524.8,2524.4,2.40698833]
[1725074702523,4.48287175,2524.7,2524.4,2.40698833]
[1725074702714,4.48287175,2524.7,2524.5,0.27729]
[1725074703814,4.76014175,2524.7,2524.5,0.27729]
[1725074704209,4.48287175,2524.7,2524.5,0.27729]
[1725074705119,4.76015175,2524.7,2524.5,0.27729]
[1725074705509,0.99876,2524.8,2524.6,0.27728]
[1725074705911,0.99876,2524.8,2524.7,0.3524]
[1725074706314,4.95956,2524.8,2524.7,0.3524]
[1725074711207,0.99876,2524.8,2524.7,0.3524]
[1725074713321,0.7215,2524.8,2524.7,0.3524]
[1725074714019,0.7215,2524.8,2524.7,0.62967]
[1725074714223,0.7215,2524.8,2524.7,0.3524]
[1725074715016,0.99876,2524.8,2524.7,0.3524]
[1725074728441,0.63266,2524.8,2524.7,0.3524]
[1725074728742,0.27726,2524.8,2524.7,0.3524]
[1725074730245,3.48505,2524.9,2524.7,0.62967]
[1725074730546,4.29970844,2524.8,2524.7,0.62967]
[1725074732437,4.29970844,2524.8,2524.7,1.02119853]
[1725074733444,4.29970844,2524.8,2524.7,0.62967]
[1725074733840,4.29970844,2524.8,2524.7,1.02119262]
[1725074734045,4.29970844,2524.8,2524.7,0.62967]
[1725074734649,4.29970844,2524.8,2524.7,1.02119502]
[1725074734845,4.29970844,2524.8,2524.7,1.02119361]
[1725074735656,4.29970844,2524.8,2524.7,1.02120229]
[1725074738647,4.29970844,2524.8,2524.7,1.02122497]
[1725074740949,4.29970844,2524.8,2524.7,2.0584133]
[1725074741348,4.29970844,2524.8,2524.7,1.02122497]
[1725074741553,4.29970844,2524.8,2524.7,2.0584133]
[1725074742553,3.2078,2525.0,2524.9,0.27725]
[1725074742761,3.2078,2525.0,2524.9,0.66880497]
[1725074743858,0.99172,2525.2,2524.9,0.66880497]
[1725074744060,0.99172,2525.2,2524.9,0.27725]
[1725074744362,4.1591454,2525.1,2525.0,0.3717]
[1725074744747,4.1591454,2525.1,2525.0,5.60894]
[1725074745061,3.2078,2525.4,2525.2,0.27721]
[1725074745554,3.2078,2525.4,2525.3,0.3717]
[1725074746157,3.2078,2525.4,2525.3,0.6489]
[1725074746749,3.2078,2525.4,2525.3,0.3717]
[1725074748246,3.2078,2525.4,2525.3,0.6489]
[1725074749960,3.2078,2525.4,2525.3,1.6489]
[1725074751656,0.27716,2525.7,2525.4,0.27719]
[1725074752059,4.46632379,2525.6,2525.4,0.27719]
[1725074753963,4.46632379,2525.6,2525.5,0.27718]
[1725074760971,4.74349379,2525.6,2525.4,1.01409]
[1725074761476,0.7134,2525.5,2525.4,1.01409]
[1725074762274,0.7134,2525.5,2525.4,0.27719]
[1725074764372,0.99059,2525.5,2525.3,1.6489]
[1725074765674,0.27719,2525.4,2525.3,1.6489]
[1725074765978,0.99059,2525.5,2525.3,1.6489]
[1725074772785,0.27719,2525.4,2525.3,1.6489]
[1725074773182,0.27719,2525.4,2525.3,1.3717]
[1725074774076,0.27719,2525.4,2525.3,1.6489]
[1725074775385,0.7134,2525.5,2525.3,1.6489]
[1725074775686,0.27719,2525.4,2525.3,1.6489]
[1725074778286,0.99059,2525.5,2525.3,1.6489]
[1725074781083,0.27719,2525.4,2525.3,1.6489]
[1725074782884,0.7134,2525.5,2525.3,5.6089]
[1725074782885,0.99059,2525.5,2525.3,5.6089]
[1725074783100,0.99059,2525.5,2525.4,0.7248]
[1725074783288,0.3572,2525.5,2525.4,1.00199]
[1725074783495,0.27718,2525.5,2525.4,4.96199]
[1725074784589,0.27718,2525.5,2525.4,4.6848]
[1725074786084,0.27718,2525.6,2525.4,4.96198]
[1725074786289,0.27718,2525.6,2525.5,1.0]
[1725074795899,0.63307,2525.7,2525.5,1.27718]
[1725074796392,0.63307,2525.7,2525.6,0.3648]
[1725074835424,0.63307,2525.7,2525.6,0.75605284]
[1725074835617,0.63307,2525.7,2525.6,0.3648]
[1725074835925,0.63307,2525.7,2525.6,0.75604404]
[1725074838232,0.63307,2525.7,2525.6,0.75604045]
[1725074838529,0.63307,2525.7,2525.5,2.03745482]
[1725074838530,0.27717,2525.6,2525.5,1.03745482]
[1725074838731,0.27717,2525.6,2525.4,1.5557825]
[1725074838732,0.27718,2525.5,2525.4,1.03745482]
[1725074838925,3.48498,2525.5,2525.4,0.39130512]
[1725074839228,0.27719,2525.4,2525.3,1.03745482]
[1725074839422,0.7202,2525.4,2525.3,0.39135726]
[1725074839824,0.99739,2525.4,2525.3,0.39135726]
[1725074840128,0.99739,2525.4,2525.3,1.42881208]
[1725074840321,0.99739,2525.4,2525.3,0.39135726]
[1725074841233,0.99739,2525.4,2525.2,2.39035482]
[1725074841428,0.99739,2525.4,2525.3,0.39135664]
[1725074841728,0.99739,2525.4,2525.3,0.39135388]
[1725074842333,0.99739,2525.4,2525.2,2.39035482]
[1725074842726,0.2772,2525.3,2525.2,2.39035482]
[1725074842933,0.2772,2525.3,2525.2,2.78171502]
[1725074843149,0.2772,2525.3,2525.2,6.74171502]
[1725074843338,0.2772,2525.3,2525.2,0.7442602]
[1725074843629,0.2772,2525.3,2525.1,1.03745482]
[1725074843630,0.27723,2525.1,2525.0,1.03745482]
[1725074843837,0.27722,2525.2,2525.0,1.42891715]
[1725074844134,0.27722,2525.2,2525.0,1.03745482]
[1725074844333,0.27722,2525.2,2524.9,2.03745482]
[1725074844630,0.27722,2525.2,2525.0,0.39145806]
[1725074844833,0.27722,2525.2,2524.9,2.31470482]
[1725074845033,0.27722,2525.2,2525.1,1.0]
[1725074846232,0.9974,2525.4,2525.1,1.0]
[1725074846434,0.9974,2525.4,2525.1,1.3534]
[1725074846633,0.9974,2525.4,2525.1,1.63062]
[1725074849835,0.9974,2525.4,2525.1,2.00462]
[1725074850228,0.7202,2525.4,2525.1,1.00462]
[1725074850432,0.27721,2525.3,2525.1,0.7274]
[1725074851344,0.27721,2525.3,2525.1,1.00462]
[1725074853037,0.27721,2525.3,2525.1,0.7274]
[1725074856941,0.27721,2525.3,2525.1,1.00462]
[1725074857748,0.27721,2525.3,2525.1,0.7274]
[1725074862440,0.27721,2525.3,2525.1,1.00463]
[1725074863254,0.27721,2525.3,2525.1,0.7274]
[1725074864447,0.27721,2525.3,2525.1,1.00462]
[1725074871947,0.6402,2525.4,2525.1,1.00462]
[1725074872456,0.2772,2525.3,2525.1,1.00462]
[1725074873249,0.363,2525.4,2525.1,1.00462]
[1725074873453,0.6402,2525.4,2525.1,1.00462]
[1725074873649,0.6402,2525.4,2525.2,0.27721]
[1725074874158,0.6402,2525.4,2525.3,0.359]
[1725074877257,0.363,2525.4,2525.3,0.359]
[1725074877555,3.2078,2525.8,2525.3,5.319]
[1725074877861,4.2791318,2525.7,2525.6,0.27716]
[1725074879861,4.2791318,2525.7,2525.5,0.27717]
[1725074880357,4.2791318,2525.7,2525.6,0.27717]
[1725074880554,3.2078,2525.8,2525.6,0.27717]
[1725074881362,3.2078,2525.8,2525.6,1.27717]
[1725074881564,3.2078,2525.8,2525.7,0.3558]
[1725074882157,1.03394,2525.9,2525.7,0.3558]
[1725074882456,4.24174,2525.9,2525.7,0.3558]
[1725074884764,0.27715,2525.8,2525.7,0.3558]
[1725074885266,0.27715,2525.8,2525.6,1.27717]
[1725074889163,1.03394,2525.9,2525.6,1.27717]
[1725074890766,0.27715,2525.8,2525.6,1.27717]
[1725074890966,0.7568,2525.9,2525.6,1.27717]
[1725074892067,1.03394,2525.9,2525.6,1.27717]
[1725074892667,1.03394,2525.9,2525.7,0.3743]
[1725074897372,4.24174,2525.9,2525.7,0.3743]
[1725074898666,1.03394,2525.9,2525.7,0.3743]
[1725074899075,0.7568,2525.9,2525.7,0.3743]
[1725074899262,3.2078,2526.0,2525.9,0.27714]